bitfinex/quotes_BTCUSD_20251015
["timestamp","ask_amount","ask_price","bid_price","bid_amount"]
[1760488557751,5.0,113020.0,113000.0,0.18582568]
[1760488557944,5.0,113010.0,113000.0,0.18582568]
[1760488558171,5.01644585,113010.0,113000.0,0.18582568]
[1760488558380,5.00879429,113010.0,113000.0,0.18582568]
[1760488558823,0.00879429,113010.0,113000.0,0.18582568]
[1760488558993,5.00879429,113010.0,113000.0,0.22565407]
[1760488559153,5.34,113010.0,113000.0,0.21681954]
[1760488559782,0.34,113010.0,113000.0,0.21681954]
[1760488560410,0.001,113010.0,113000.0,0.25300182]
[1760488560951,5.0,113040.0,113030.0,0.17693909]
[1760488561165,5.02466726,113040.0,113030.0,0.23090654]
[1760488561374,5.35643101,113040.0,113030.0,0.03627304]
[1760488561602,5.36464627,113040.0,113030.0,0.05396745]
[1760488561815,5.36562042,113040.0,113030.0,0.23091162]
[1760488562082,5.36562042,113040.0,113030.0,0.21321721]
[1760488562284,5.36562042,113040.0,113030.0,0.21326709]
[1760488562285,5.00918941,113040.0,113030.0,0.21326709]
[1760488562708,5.34918941,113040.0,113030.0,0.21326709]
[1760488562932,5.17885441,113040.0,113030.0,0.21326709]
[1760488563737,0.34918941,113040.0,113030.0,0.21326709]
[1760488564150,5.18229277,113040.0,113030.0,0.21326709]
[1760488564315,0.35262777,113040.0,113030.0,0.21326709]
[1760488564911,5.18229277,113040.0,113030.0,0.21326709]
[1760488569699,5.18229277,113040.0,113030.0,0.24944937]
[1760488569700,0.35262777,113040.0,113030.0,0.24944937]
[1760488570287,0.00343836,113040.0,113030.0,0.24944937]
[1760488572215,0.00343836,113040.0,113030.0,0.03632292]
[1760488572603,0.00343836,113040.0,113030.0,0.17799405]
[1760488573162,0.00343836,113040.0,113030.0,0.17699405]
[1760488573370,0.00343836,113040.0,113030.0,0.19468846]
[1760488576296,0.00343836,113040.0,113030.0,0.21317633]
[1760488579495,0.00343836,113040.0,113030.0,0.21417633]
[1760488579737,0.00343836,113040.0,113030.0,0.26448588]
[1760488581268,1e-08,113040.0,113030.0,0.26448588]
[1760488585914,0.02474989,113070.0,113060.0,0.2130795]
[1760488586290,0.02476314,113070.0,113060.0,0.2130795]
[1760488588895,0.00839521,113070.0,113060.0,0.2130795]
[1760488589195,0.0004,113080.0,113070.0,0.17688157]
[1760488589612,0.0004,113080.0,113070.0,0.19456972]
[1760488589999,0.0004,113080.0,113070.0,0.230752]
[1760488590165,0.0004,113080.0,113070.0,0.21306385]
[1760488592092,0.0004,113080.0,113070.0,0.21406385]
[1760488592293,0.0004,113080.0,113070.0,0.25705975]
[1760488592492,0.0004,113090.0,113080.0,0.21304821]
[1760488592691,0.00053245,113090.0,113080.0,0.21304821]
[1760488592893,0.001105,113090.0,113080.0,0.21304821]
[1760488597080,0.001105,113090.0,113080.0,0.32492821]
[1760488597285,0.001105,113090.0,113080.0,0.37940878]
[1760488597490,0.001105,113090.0,113080.0,0.38040878]
[1760488598221,1e-08,113090.0,113080.0,0.38040878]
[1760488603252,1e-08,113090.0,113080.0,0.26852878]
[1760488607755,1e-08,113090.0,113080.0,0.38028878]
[1760488614077,0.3404,113130.0,113120.0,0.17680339]
[1760488614078,4.829665,113130.0,113120.0,0.17680339]
[1760488614289,4.83838152,113130.0,113120.0,0.23346419]
[1760488614488,4.83838152,113130.0,113120.0,0.21578386]
[1760488616003,5.17838152,113130.0,113120.0,0.21578386]
[1760488616227,5.17938152,113130.0,113120.0,0.21578386]
[1760488616872,5.17838152,113130.0,113120.0,0.21578386]
[1760488619668,5.18067083,113130.0,113120.0,0.21578386]
[1760488620811,5.18067083,113130.0,113120.0,0.03898047]
[1760488620943,5.18067083,113130.0,113120.0,0.19448372]
[1760488621363,0.35100583,113130.0,113120.0,0.230666]
[1760488621564,0.34,113120.0,113110.0,0.2129991]
[1760488621820,0.34821687,113120.0,113110.0,0.2129991]
[1760488622025,0.34821687,113120.0,113110.0,0.25286374]
[1760488622212,0.00821687,113120.0,113110.0,0.25286374]
[1760488622784,0.00049965,113130.0,113120.0,0.17680339]
[1760488622984,0.00874308,113130.0,113120.0,0.19448372]
[1760488623211,0.00874308,113130.0,113120.0,0.23921847]
[1760488623413,0.00874308,113130.0,113120.0,0.22153814]
[1760488626258,0.00049965,113130.0,113120.0,0.22153814]
[1760488627270,0.00049965,113130.0,113120.0,0.25772042]
[1760488627671,0.00278896,113130.0,113120.0,0.25772042]
[1760488627878,0.01103239,113130.0,113120.0,0.25772042]
[1760488628187,0.02750378,113130.0,113120.0,0.25772042]
[1760488628614,5.19716878,113130.0,113120.0,0.22153814]
[1760488628968,0.34,113110.0,113100.0,0.18564726]
[1760488629571,0.34,113110.0,113100.0,0.22182954]
[1760488629857,0.34,113110.0,113100.0,0.18564726]
[1760488630058,0.34049965,113130.0,113110.0,0.1768158]
[1760488630234,4.829665,113120.0,113110.0,0.1768158]
[1760488630451,0.02470203,113120.0,113110.0,0.21306211]
[1760488630652,4.85436703,113120.0,113110.0,0.03624631]
[1760488631395,4.85436703,113120.0,113110.0,0.21306533]
[1760488631626,4.85436703,113120.0,113110.0,0.03624631]
[1760488631816,0.02470203,113120.0,113100.0,0.17683246]
[1760488632021,0.34,113110.0,113100.0,0.17683246]
[1760488632241,0.36470203,113110.0,113100.0,0.17683246]
[1760488633073,0.35646802,113110.0,113100.0,0.17683246]
[1760488633272,0.34,113110.0,113100.0,0.2343822]
[1760488633474,0.34,113110.0,113100.0,0.21669874]
[1760488633819,0.34,113110.0,113100.0,0.25288102]
[1760488634446,0.34114486,113110.0,113100.0,0.25288102]
[1760488641647,0.34114486,113110.0,113100.0,0.21670093]
[1760488642195,4.829665,113100.0,113090.0,0.2218303]
[1760488646530,4.829665,113100.0,113080.0,0.3030986]
[1760488646723,0.34,113090.0,113080.0,0.26752878]
[1760488647663,0.00057248,113100.0,113090.0,0.17685029]
[1760488647912,0.00057248,113100.0,113090.0,0.23071759]
[1760488647913,0.00107213,113100.0,113090.0,0.23071759]
[1760488648131,4.829665,113140.0,113130.0,0.18560821]
[1760488648348,0.08561801,113150.0,113140.0,0.21295442]
[1760488648560,0.0004,113160.0,113150.0,0.17675651]
[1760488648766,0.00054986,113160.0,113150.0,0.26958553]
[1760488648971,0.00054986,113160.0,113150.0,0.25190988]
[1760488651044,0.00054986,113160.0,113150.0,0.21293879]
[1760488651181,5.17021486,113160.0,113150.0,0.21393879]
[1760488652446,0.34,113150.0,113140.0,0.17677214]
[1760488652640,0.34,113150.0,113140.0,0.19444935]
[1760488653468,0.34,113150.0,113140.0,0.23063163]
[1760488653799,0.34054986,113160.0,113150.0,0.21293879]
[1760488653983,0.00054986,113160.0,113150.0,0.21293879]
[1760488654344,0.00398276,113160.0,113150.0,0.21293879]
[1760488656665,0.00398276,113160.0,113150.0,0.21393879]
[1760488658604,1e-08,113160.0,113150.0,0.32557879]
[1760488658811,1e-08,113160.0,113150.0,0.37997628]
[1760488659017,1e-08,113160.0,113150.0,0.29491528]
[1760488659235,1e-08,113160.0,113150.0,0.40655528]
[1760488660796,1e-08,113160.0,113150.0,0.20433551]
[1760488660997,0.34000001,113160.0,113150.0,0.17775651]
[1760488661322,0.34000001,113160.0,113150.0,0.21393879]
[1760488661726,0.34000001,113160.0,113150.0,0.17675651]
[1760488661924,0.34000001,113160.0,113150.0,0.19443216]
[1760488662125,0.34000001,113160.0,113150.0,0.27189717]
[1760488662328,0.34000001,113160.0,113150.0,0.25422152]
[1760488664535,1e-08,113160.0,113150.0,0.25422152]
[1760488664742,0.34000001,113160.0,113150.0,0.25422152]
[1760488669549,1e-08,113160.0,113150.0,0.25422152]
[1760488673248,4.829665,113180.0,113170.0,0.17672201]
[1760488673450,4.83786207,113180.0,113170.0,0.23335905]
[1760488673659,4.83786207,113180.0,113170.0,0.21568653]
[1760488673919,0.00819707,113180.0,113170.0,0.21568653]
[1760488674116,0.5004,113190.0,113180.0,0.17670966]
[1760488674323,4.83826234,113190.0,113180.0,0.19438062]
[1760488674526,4.83826234,113190.0,113180.0,0.23538734]
[1760488674734,4.83826234,113190.0,113180.0,0.21771638]
[1760488675151,5.17826234,113190.0,113180.0,0.21771638]
[1760488675363,5.17926234,113190.0,113180.0,0.21771638]
[1760488675573,5.19568233,113190.0,113180.0,0.21771638]
[1760488675762,5.17926234,113190.0,113180.0,0.21771638]
[1760488676184,5.17926234,113190.0,113180.0,0.25389866]
[1760488676394,0.34959734,113190.0,113180.0,0.25389866]
[1760488676602,0.36603608,113190.0,113180.0,0.25389866]
[1760488676818,0.36503608,113190.0,113180.0,0.25389866]
[1760488677246,0.34,113180.0,113170.0,0.0751468]
[1760488677456,5.19430108,113180.0,113170.0,0.03896452]
[1760488677671,4.829665,113170.0,113160.0,0.17673412]
[1760488677884,4.85433188,113170.0,113150.0,0.22687706]
[1760488678098,4.829665,113160.0,113150.0,0.26305934]
[1760488678310,5.17786234,113160.0,113150.0,0.04128273]
[1760488678518,5.19433066,113160.0,113150.0,0.21803924]
[1760488679388,0.36466566,113160.0,113150.0,0.21803924]
[1760488679622,0.34819734,113160.0,113150.0,0.25422152]
[1760488680036,0.00819734,113160.0,113150.0,0.25422152]
[1760488680260,4.8383003,113190.0,113180.0,0.17670966]
[1760488680470,5.19477109,113190.0,113180.0,0.22972277]
[1760488680678,4.85477109,113190.0,113180.0,0.21205181]
[1760488680826,5.19477109,113190.0,113180.0,0.21205181]
[1760488681670,4.85477109,113190.0,113180.0,0.21205181]
[1760488681869,0.02510609,113190.0,113180.0,0.21205181]
[1760488682080,0.02510609,113190.0,113180.0,0.24823409]
[1760488683134,4.85477109,113190.0,113180.0,0.24823409]
[1760488683296,5.19477109,113190.0,113180.0,0.17670966]
[1760488684404,5.19477109,113190.0,113180.0,0.19438062]
[1760488684614,0.36510609,113190.0,113180.0,0.2305629]
[1760488684754,0.02510609,113190.0,113180.0,0.21289194]
[1760488684964,0.02682163,113190.0,113180.0,0.25185232]
[1760488685405,0.0004,113210.0,113190.0,0.17669405]
[1760488685544,4.83021478,113210.0,113200.0,0.19434628]
[1760488687410,5.17021478,113210.0,113200.0,0.19434628]
[1760488687860,5.17021478,113210.0,113200.0,0.20989676]
[1760488688073,5.17021478,113210.0,113200.0,0.19222892]
[1760488690184,5.120244,113210.0,113200.0,0.19222892]
[1760488694289,5.120244,113210.0,113180.0,0.21566358]
[1760488694290,0.34,113200.0,113180.0,0.21566358]
[1760488694772,4.780244,113190.0,113180.0,0.21566358]
[1760488694972,4.780244,113180.0,113170.0,0.00151563]
[1760488695260,5.120244,113180.0,113170.0,0.00151563]
[1760488696787,5.29695366,113180.0,113170.0,0.00151563]
[1760488696993,5.31590794,113180.0,113170.0,0.00151563]
[1760488697209,5.32976783,113180.0,113170.0,0.00151563]
[1760488697412,5.35444098,113180.0,113170.0,0.00151563]
[1760488698247,5.36984727,113180.0,113170.0,0.00151563]
[1760488698501,5.39346534,113180.0,113170.0,0.00151563]
[1760488698686,5.39446534,113180.0,113170.0,0.00151563]
[1760488699299,5.39346534,113180.0,113170.0,0.00151563]
[1760488699711,5.37084727,113180.0,113170.0,0.00151563]
[1760488699912,5.37184727,113180.0,113170.0,0.00151563]
[1760488700117,5.39546534,113180.0,113170.0,0.00151563]
[1760488700540,5.42692625,113180.0,113170.0,0.00151563]
[1760488700749,5.92692625,113180.0,113170.0,0.00151563]
[1760488701378,5.89546534,113180.0,113170.0,0.00151563]
[1760488702007,5.88160545,113180.0,113170.0,0.00151563]
[1760488703438,5.85798738,113180.0,113170.0,0.00151563]
[1760488704951,5.8984453,113180.0,113170.0,0.00151563]
[1760488705541,5.6767073,113180.0,113170.0,0.00151563]
[1760488708316,5.65775302,113180.0,113170.0,0.00151563]
[1760488708754,5.63115729,113180.0,113170.0,0.00151563]
[1760488709846,5.615751,113180.0,113170.0,0.00151563]
[1760488710259,5.65009606,113180.0,113170.0,0.00151563]
[1760488712093,5.68627834,113180.0,113170.0,0.00151563]
[1760488712296,5.70606348,113180.0,113170.0,1e-08]
[1760488712510,5.20606348,113180.0,113170.0,1e-08]
[1760488712709,5.19220129,113180.0,113170.0,1e-08]
[1760488713170,5.21581936,113180.0,113170.0,1e-08]
[1760488713592,5.22963915,113180.0,113170.0,1e-08]
[1760488713765,5.23524342,113180.0,113170.0,1e-08]
[1760488714201,5.24308626,113180.0,113170.0,1e-08]
[1760488714541,5.24308341,113180.0,113170.0,1e-08]
[1760488714740,5.31047961,113180.0,113170.0,1e-08]
[1760488714946,5.8736976,113150.0,113140.0,0.0717521]
[1760488715139,5.89832399,113150.0,113140.0,0.0717521]
[1760488715347,5.91716123,113150.0,113140.0,0.07346837]
[1760488715547,5.93102606,113150.0,113140.0,0.00171627]
[1760488716065,5.93102606,113150.0,113140.0,0.00186605]
[1760488716564,5.94651555,113150.0,113140.0,0.00186605]
[1760488716785,5.93102606,113150.0,113140.0,0.00186605]
[1760488717146,6.43102606,113150.0,113140.0,0.00186605]
[1760488717339,6.43986388,113150.0,113140.0,0.00186605]
[1760488718166,6.45535337,113150.0,113140.0,0.00186605]
[1760488718374,6.49153565,113150.0,113140.0,0.00186605]
[1760488718790,5.48256823,113130.0,113120.0,0.0717521]
[1760488719007,5.92603186,113130.0,113120.0,0.07190196]
[1760488719211,5.94142751,113130.0,113120.0,0.00014986]
[1760488719623,5.99147808,113130.0,113120.0,0.00014986]
[1760488719830,5.97760979,113130.0,113120.0,0.00014986]
[1760488720033,5.978606,113130.0,113120.0,0.00014986]
[1760488720234,5.977606,113130.0,113120.0,0.00014986]
[1760488720446,5.981606,113130.0,113120.0,0.00014986]
[1760488720654,6.00514781,113130.0,113120.0,0.00014986]
[1760488720858,6.02493295,113130.0,113120.0,0.00014986]
[1760488721049,6.00514781,113130.0,113120.0,0.00014986]
[1760488721286,6.52776934,113130.0,113120.0,0.00014986]
[1760488721491,6.49630547,113130.0,113120.0,0.00014986]
[1760488721690,6.50514563,113130.0,113120.0,0.00014986]
[1760488721894,6.52826384,113130.0,113120.0,0.00014986]
[1760488722106,6.55772475,113130.0,113120.0,0.00014986]
[1760488722343,6.53418294,113130.0,113120.0,0.00014986]
[1760488722555,6.53218294,113130.0,113120.0,0.00014986]
[1760488722757,6.54805295,113130.0,113120.0,0.00014986]
[1760488722960,6.55005295,113130.0,113120.0,0.00014986]
[1760488723364,6.59725294,113130.0,113120.0,0.00014986]
[1760488723569,6.58176345,113130.0,113120.0,0.00014986]
[1760488724165,6.58177076,113130.0,113120.0,0.00014986]
[1760488724309,6.56579998,113130.0,113120.0,0.00129439]
[1760488725956,6.14146969,113130.0,113120.0,0.00129439]
[1760488726204,5.35110404,113130.0,113120.0,0.00129439]
[1760488726404,6.09837851,113130.0,113120.0,0.00129439]
[1760488726723,5.78197851,113130.0,113120.0,0.00129439]
[1760488727018,6.11997851,113130.0,113120.0,0.00129439]
[1760488727329,6.12197851,113130.0,113120.0,0.00129439]
[1760488727534,6.12199379,113130.0,113120.0,0.00129439]
[1760488728053,6.12204682,113130.0,113120.0,0.00129439]
[1760488728229,6.12004682,113130.0,113120.0,0.00129439]
[1760488728702,6.12204682,113130.0,113120.0,0.00129439]
[1760488729326,6.09844322,113130.0,113120.0,0.00129439]
[1760488730569,6.08457321,113130.0,113120.0,0.00129439]
[1760488730767,6.1472636,113130.0,113120.0,0.00129439]
[1760488730974,6.18344588,113130.0,113120.0,0.00129439]
[1760488731237,6.55199417,113130.0,113120.0,0.00129439]
[1760488731412,6.79812958,113130.0,113120.0,0.00129439]
[1760488731624,6.81496076,113130.0,113120.0,0.00129439]
[1760488731848,6.81496152,113130.0,113120.0,0.00129439]
[1760488732027,6.80734979,113130.0,113120.0,0.00129439]
[1760488732371,6.80934979,113130.0,113120.0,0.00129439]
[1760488732638,6.80734979,113130.0,113120.0,0.00129439]
[1760488732922,6.80934979,113130.0,113120.0,0.00129439]
[1760488733101,0.51683465,113100.0,113090.0,0.0717521]
[1760488733315,5.11877647,113100.0,113090.0,0.0717521]
[1760488733496,5.13426687,113100.0,113090.0,0.0717521]
[1760488733845,4.898506,113080.0,113070.0,0.0717521]
[1760488733985,4.92309774,113080.0,113070.0,0.07944696]
[1760488734186,4.91490057,113080.0,113070.0,0.07944696]
[1760488734390,4.91490057,113080.0,113070.0,0.00769486]
[1760488735222,5.42877192,113080.0,113070.0,0.00769486]
[1760488735573,5.42877192,113080.0,113070.0,0.00049965]
[1760488737402,5.43697323,113080.0,113070.0,0.00049965]
[1760488738637,5.61383916,113080.0,113070.0,0.00049965]
[1760488739060,5.61383916,113080.0,113070.0,0.00336251]
[1760488739259,5.45588198,113080.0,113070.0,0.00336251]
[1760488739687,5.63274791,113080.0,113070.0,0.00336251]
[1760488740107,4.898506,113060.0,113050.0,0.18575045]
[1760488740293,4.91490057,113060.0,113050.0,0.2216363]
[1760488740489,4.91490057,113060.0,113050.0,0.22278995]
[1760488742785,5.41490057,113060.0,113050.0,0.03703144]
[1760488743012,5.41490057,113060.0,113050.0,0.00127804]
[1760488743455,5.41490057,113060.0,113050.0,0.17819091]
[1760488743637,5.41490057,113060.0,113050.0,0.00127804]
[1760488743838,5.41490057,113060.0,113050.0,0.19588219]
[1760488744075,5.41490057,113060.0,113050.0,0.00127804]
[1760488744288,5.41490057,113060.0,113050.0,0.19588219]
[1760488744745,5.41490057,113060.0,113050.0,0.23316256]
[1760488745011,5.41490057,113060.0,113050.0,0.21547128]
[1760488746476,5.41490057,113060.0,113050.0,0.03855841]
[1760488746626,5.41490057,113060.0,113050.0,0.01896932]
[1760488747299,5.42312986,113060.0,113050.0,0.01896932]
[1760488747722,5.42312986,113060.0,113050.0,0.19588219]
[1760488747971,5.41490057,113060.0,113050.0,0.17819091]
[1760488748315,5.42313155,113060.0,113050.0,0.0327347]
[1760488749487,5.42313155,113060.0,113050.0,0.20964757]
[1760488750039,5.41490057,113060.0,113050.0,0.20964757]
[1760488750861,5.42313087,113060.0,113050.0,0.0327347]
[1760488751088,5.42313087,113060.0,113050.0,0.05042598]
[1760488751089,5.42313088,113060.0,113050.0,0.05042598]
[1760488751328,5.42313088,113060.0,113050.0,0.0327347]
[1760488751909,5.42313088,113060.0,113050.0,0.20964757]
[1760488752269,5.42319429,113060.0,113050.0,0.20964757]
[1760488752489,5.42319411,113060.0,113050.0,0.20964757]
[1760488753343,5.41496463,113060.0,113050.0,0.20964757]
[1760488753858,5.41496463,113060.0,113050.0,0.0327347]
[1760488754048,5.41496463,113060.0,113050.0,0.00127804]
[1760488754689,5.61904804,113060.0,113050.0,0.00127804]
[1760488755085,5.44215082,113060.0,113050.0,0.00127804]
[1760488755300,5.42319322,113060.0,113050.0,0.00127804]
[1760488756095,5.42319191,113060.0,113050.0,0.00127804]
[1760488756500,5.42419191,113060.0,113050.0,0.00127804]
[1760488757205,5.42518865,113060.0,113050.0,0.00127804]
[1760488757409,5.42518865,113060.0,113050.0,0.19588219]
[1760488757634,5.41696137,113060.0,113050.0,0.03855903]
[1760488757832,5.41696137,113060.0,113050.0,0.00127804]
[1760488758033,5.4251875,113060.0,113050.0,0.00127804]
[1760488758234,5.41696137,113060.0,113050.0,0.00127804]
[1760488758740,5.400506,113060.0,113050.0,0.00127804]
[1760488759203,5.400506,113060.0,113050.0,0.01896932]
[1760488759324,5.400506,113060.0,113050.0,0.00127804]
[1760488759531,5.42519564,113060.0,113050.0,0.00127804]
[1760488760694,5.41696576,113060.0,113050.0,0.17819091]
[1760488760896,5.41696576,113060.0,113050.0,0.19588219]
[1760488761101,5.41696576,113060.0,113050.0,0.17819091]
[1760488761306,0.85845976,113060.0,113050.0,0.21370281]
[1760488761584,0.51845976,113060.0,113050.0,0.21370281]
[1760488761988,0.85845976,113060.0,113050.0,0.21370281]
[1760488762154,0.841,113060.0,113050.0,0.21370281]
[1760488762530,0.85647002,113060.0,113050.0,0.21370281]
[1760488762967,0.84,113060.0,113050.0,0.21370281]
[1760488764269,0.84,113060.0,113050.0,0.24988509]
[1760488764401,0.5,113060.0,113050.0,0.24988509]
[1760488769267,0.00430205,113060.0,113050.0,0.24988509]
[1760488769467,0.00151734,113090.0,113080.0,0.17686593]
[1760488769711,0.00151734,113090.0,113080.0,0.23354415]
[1760488769990,0.00151734,113090.0,113080.0,0.21585756]
[1760488773262,0.00151734,113090.0,113080.0,0.25203984]
[1760488775790,4.6302581,113130.0,113120.0,0.17680339]
[1760488775991,4.6302581,113130.0,113120.0,0.19448372]
[1760488775992,4.9702581,113130.0,113120.0,0.19448372]
[1760488776321,4.558506,113140.0,113130.0,0.17678776]
[1760488776509,4.898506,113140.0,113130.0,0.17678776]
[1760488776685,4.558506,113140.0,113130.0,0.19446653]
[1760488776868,4.55900503,113140.0,113130.0,0.19446653]
[1760488777210,4.89900503,113140.0,113130.0,0.19446653]
[1760488777414,4.89900503,113140.0,113130.0,0.23530655]
[1760488777615,4.89900503,113140.0,113130.0,0.21762778]
[1760488779690,0.34049903,113140.0,113130.0,0.21762778]
[1760488779867,4.89900503,113140.0,113130.0,0.21762778]
[1760488786770,4.92405151,113140.0,113130.0,0.21762778]
[1760488787143,4.92691289,113140.0,113130.0,0.21762778]
[1760488788835,4.58641386,113140.0,113130.0,0.21762778]
[1760488790721,4.88391986,113140.0,113130.0,0.21762778]
[1760488791297,4.89212474,113140.0,113130.0,0.21762778]
[1760488791500,0.36790786,113140.0,113130.0,0.21762778]
[1760488791905,0.36390786,113140.0,113130.0,0.21762778]
[1760488792585,0.37211518,113140.0,113130.0,0.21762778]
[1760488793157,4.88812718,113140.0,113130.0,0.21762778]
[1760488793361,4.90454111,113140.0,113130.0,0.21762778]
[1760488795530,4.516012,113120.0,113100.0,0.18565062]
[1760488795730,0.37645545,113140.0,113110.0,0.18564935]
[1760488795882,4.856012,113130.0,113120.0,0.1944833]
[1760488796098,4.88066198,113130.0,113120.0,0.23249656]
[1760488796336,4.88066198,113130.0,113120.0,0.21481623]
[1760488799901,4.88066198,113130.0,113120.0,0.03801326]
[1760488800108,4.88066198,113130.0,113110.0,0.18564935]
[1760488800309,4.516012,113110.0,113100.0,0.25740272]
[1760488800498,0.34,113120.0,113110.0,0.17681902]
[1760488800722,0.36469343,113120.0,113110.0,0.2306832]
[1760488800894,0.36469343,113120.0,113110.0,0.2130013]
[1760488801111,0.36469343,113120.0,113110.0,0.25286649]
[1760488802078,4.88070543,113120.0,113110.0,0.25286649]
[1760488802484,4.86648443,113120.0,113110.0,0.25286649]
[1760488803861,4.86648443,113120.0,113110.0,0.21668421]
[1760488804518,4.86648443,113120.0,113110.0,0.03986519]
[1760488804721,4.86648443,113120.0,113110.0,0.17681902]
[1760488805234,0.34224129,113120.0,113110.0,0.19450092]
[1760488805371,0.35048474,113120.0,113110.0,0.19450092]
[1760488805581,0.35048474,113120.0,113110.0,0.2306832]
[1760488805781,0.35048474,113120.0,113110.0,0.2130013]
[1760488805983,0.35048474,113120.0,113110.0,0.25286649]
[1760488806181,0.35220187,113120.0,113110.0,0.25286649]
[1760488806923,0.02642287,113120.0,113110.0,0.25286649]
[1760488807131,0.00996058,113120.0,113110.0,0.25286649]
[1760488807390,0.02104648,113140.0,113130.0,0.21297004]
[1760488807568,0.02104648,113140.0,113130.0,0.25194604]
[1760488807772,0.05922913,113160.0,113150.0,0.17675651]
[1760488807987,0.02651845,113160.0,113150.0,0.17675651]
[1760488808241,0.02651845,113160.0,113150.0,0.19443216]
[1760488809606,0.02651845,113160.0,113150.0,0.23061444]
[1760488809801,0.02651845,113160.0,113150.0,0.25367611]
[1760488810301,0.02651845,113160.0,113150.0,0.0769196]
[1760488810518,0.02651845,113160.0,113150.0,0.09459525]
[1760488811134,0.36651845,113160.0,113150.0,0.01767565]
[1760488811340,0.34,113140.0,113130.0,0.038976]
[1760488811544,4.516012,113140.0,113130.0,0.01767877]
[1760488811740,0.01647286,113140.0,113120.0,0.18563016]
[1760488811951,4.87248486,113140.0,113120.0,0.00884016]
[1760488812173,0.35647286,113140.0,113120.0,0.18564278]
[1760488813014,0.35761726,113140.0,113120.0,0.18564278]
[1760488813238,0.01647286,113140.0,113120.0,0.23755301]
[1760488813511,0.35647286,113150.0,113130.0,0.1944661]
[1760488813663,0.34,113140.0,113130.0,0.1944661]
[1760488813862,0.01647286,113140.0,113130.0,0.1944661]
[1760488814056,4.516012,113150.0,113130.0,0.1944661]
[1760488814355,4.516012,113140.0,113130.0,0.23766801]
[1760488814582,4.516012,113140.0,113130.0,0.21998924]
[1760488814583,0.01647286,113140.0,113130.0,0.21998924]
[1760488815315,0.25090442,113160.0,113130.0,0.04320191]
[1760488815571,4.516012,113150.0,113130.0,0.04320191]
[1760488815774,4.516012,113140.0,113130.0,0.04320191]
[1760488815988,4.53248486,113140.0,113130.0,0.04320191]
[1760488816224,0.01647286,113140.0,113130.0,0.04320191]
[1760488816438,4.53248486,113140.0,113130.0,0.21998967]
[1760488816649,0.01647155,113140.0,113130.0,0.21998967]
[1760488816864,0.35647155,113150.0,113130.0,0.21998967]
[1760488817293,4.516012,113140.0,113130.0,0.21998967]
[1760488817505,4.53248355,113140.0,113130.0,0.21998967]
[1760488817714,0.01647155,113140.0,113130.0,0.21998967]
[1760488818151,4.516012,113140.0,113130.0,0.21998967]
[1760488818362,0.01647155,113140.0,113130.0,0.21998967]
[1760488818570,4.53248355,113140.0,113130.0,0.21998967]
[1760488818804,0.01761595,113140.0,113130.0,0.04320191]
[1760488819031,5.03362795,113140.0,113130.0,0.04320191]
[1760488819273,4.54186388,113140.0,113130.0,0.04320191]
[1760488819529,4.54186388,113140.0,113130.0,0.21998967]
[1760488820359,4.5171564,113140.0,113130.0,0.21998967]
[1760488820562,4.8571564,113140.0,113130.0,0.21998967]
[1760488821447,0.3411444,113140.0,113130.0,0.21998967]
[1760488823444,4.8571564,113140.0,113130.0,0.04320191]
[1760488824520,4.516012,113130.0,113120.0,0.17680106]
[1760488824737,4.516012,113130.0,113120.0,0.23066367]
[1760488824935,4.516012,113130.0,113120.0,0.21298334]
[1760488829697,4.516012,113130.0,113100.0,0.18716754]
[1760488829901,0.34,113120.0,113110.0,0.2130013]
[1760488830102,0.34,113120.0,113110.0,0.25301818]
[1760488830858,0.34057225,113130.0,113110.0,0.25301818]
[1760488831037,0.52635048,113130.0,113090.0,0.17680718]
[1760488831219,4.516012,113110.0,113100.0,0.19451741]
[1760488831434,4.516012,113110.0,113100.0,0.21301623]
[1760488831632,0.34,113100.0,113080.0,0.25737277]
[1760488831839,0.34,113100.0,113090.0,0.21302931]
[1760488832850,0.34,113110.0,113100.0,0.1768309]
[1760488833811,0.34,113110.0,113090.0,0.21302929]
[1760488834027,0.34,113110.0,113090.0,0.03618228]
[1760488834228,0.34,113110.0,113080.0,0.04430123]
[1760488834229,0.34,113090.0,113080.0,0.04430123]
[1760488834361,0.34,113090.0,113080.0,0.17686593]
[1760488834561,0.34,113090.0,113080.0,0.21304821]
[1760488835383,0.34,113110.0,113080.0,0.22239053]
[1760488835584,4.516012,113100.0,113080.0,0.22239053]
[1760488837792,4.516012,113100.0,113080.0,0.17736494]
[1760488837993,4.516012,113100.0,113080.0,0.03679948]
[1760488838377,4.69284806,113100.0,113080.0,0.03679948]
[1760488838601,4.516012,113090.0,113080.0,0.03679948]
[1760488838832,4.856012,113090.0,113080.0,0.03679948]
[1760488839040,4.856012,113090.0,113080.0,0.00049903]
[1760488839221,4.856056,113090.0,113080.0,0.00049903]
[1760488839421,4.856012,113090.0,113080.0,0.00049903]
[1760488843028,4.856012,113090.0,113080.0,0.19505155]
[1760488843228,4.856012,113090.0,113080.0,0.17736496]
[1760488843761,4.856012,113090.0,113080.0,0.21640775]
[1760488845865,0.34,113090.0,113080.0,0.25259003]
[1760488846122,0.5,113110.0,113090.0,0.17685029]
[1760488846317,0.5,113110.0,113100.0,0.19451811]
[1760488846527,0.34,113110.0,113100.0,0.23165495]
[1760488846724,4.856012,113110.0,113100.0,0.03713684]
[1760488846952,0.34,113100.0,113090.0,0.21303257]
[1760488848845,4.856012,113100.0,113090.0,0.21303257]
[1760488850496,4.516012,113110.0,113090.0,0.21303257]
[1760488858223,4.516012,113100.0,113090.0,0.21303257]
[1760488858570,4.516012,113110.0,113090.0,0.21303257]
[1760488858788,4.516012,113100.0,113090.0,0.25686093]
[1760488858953,4.516012,113110.0,113090.0,0.25686093]
[1760488859151,4.516012,113100.0,113090.0,0.25686093]
[1760488859453,4.516012,113110.0,113090.0,0.25686093]
[1760488859691,4.516012,113100.0,113090.0,0.25686093]
[1760488859891,4.516012,113110.0,113090.0,0.25686093]
[1760488860100,4.516012,113100.0,113090.0,0.25686093]
[1760488860300,5.356012,113110.0,113100.0,0.17683465]
[1760488860628,0.84,113110.0,113100.0,0.27406995]
[1760488860834,0.84,113110.0,113100.0,0.25638649]
[1760488860980,5.356012,113110.0,113100.0,0.07955184]
[1760488861221,5.37250804,113110.0,113100.0,0.07955184]
[1760488861382,5.356012,113110.0,113100.0,0.25638649]
[1760488863102,0.84,113110.0,113100.0,0.25638649]
[1760488864594,0.5,113110.0,113100.0,0.25638649]
[1760488865012,0.5,113110.0,113100.0,0.36802649]
[1760488865588,0.00057225,113130.0,113120.0,0.21298567]
[1760488865790,0.00057225,113130.0,113120.0,0.25196482]
[1760488866675,0.00072181,113130.0,113120.0,0.25196482]
[1760488867084,0.00072181,113130.0,113120.0,0.36360482]
[1760488867282,0.00072181,113130.0,113120.0,0.25196482]
[1760488870688,0.4834905,113140.0,113120.0,0.07516143]